bitfinex/quotes_BTCUSD_20240715
["timestamp","ask_amount","ask_price","bid_price","bid_amount"]
[1721024755424,1e-08,63079.0,63078.0,3.52623493]
[1721024755628,1e-08,63079.0,63078.0,3.10389904]
[1721024755802,0.57042483,63080.0,63079.0,1.79115913]
[1721024756027,0.57042483,63080.0,63079.0,2.97459875]
[1721024756437,0.57042483,63080.0,63079.0,2.92743744]
[1721024756635,0.57042483,63080.0,63079.0,2.97459682]
[1721024757111,0.57042483,63080.0,63079.0,2.97459386]
[1721024757335,0.57042483,63080.0,63079.0,3.22679344]
[1721024758423,0.57042483,63080.0,63079.0,3.24079344]
[1721024759384,0.57042483,63080.0,63079.0,3.28794986]
[1721024759771,0.57042483,63080.0,63079.0,3.28794586]
[1721024760160,0.48712483,63080.0,63079.0,4.37361562]
[1721024760352,0.48712483,63080.0,63079.0,4.46948257]
[1721024760558,0.48712483,63080.0,63079.0,5.19448257]
[1721024761176,0.48712483,63080.0,63079.0,4.85265217]
[1721024761546,0.48712483,63080.0,63079.0,4.86665217]
[1721024761947,0.48693403,63080.0,63079.0,4.5812443]
[1721024762255,0.48693403,63080.0,63079.0,4.63754074]
[1721024762664,0.48693403,63080.0,63079.0,4.65154074]
[1721024763168,0.48693403,63080.0,63079.0,4.06980962]
[1721024763395,0.48693403,63080.0,63079.0,3.42650348]
[1721024763552,0.48693403,63080.0,63079.0,3.68895339]
[1721024763746,0.48693403,63080.0,63079.0,3.54773907]
[1721024763965,0.48693403,63080.0,63079.0,3.51973907]
[1721024764372,0.48693403,63080.0,63079.0,2.76540546]
[1721024764576,0.48693403,63080.0,63079.0,3.28660704]
[1721024764785,0.48693403,63080.0,63079.0,3.48660704]
[1721024765004,0.48693403,63080.0,63079.0,2.91827313]
[1721024765213,0.48693403,63080.0,63079.0,3.46540463]
[1721024765414,0.48693403,63080.0,63079.0,3.76540463]
[1721024765620,0.48693403,63080.0,63079.0,3.73227063]
[1721024766030,0.48693403,63080.0,63079.0,3.71827063]
[1721024766232,0.48693403,63080.0,63079.0,3.73227063]
[1721024766434,0.48693403,63080.0,63079.0,3.74627063]
[1721024766853,0.02615696,63086.0,63080.0,0.2]
[1721024767062,0.7277739,63096.0,63095.0,2.33379091]
[1721024767283,0.6344105,63096.0,63095.0,10.36369304]
[1721024767517,0.00834,63111.0,63095.0,10.36369304]
[1721024767518,7.4e-07,63102.0,63101.0,2.02855313]
[1721024767725,7.4e-07,63102.0,63101.0,5.50492624]
[1721024767934,7.4e-07,63102.0,63101.0,5.39305522]
[1721024768145,7.4e-07,63102.0,63101.0,6.32593432]
[1721024768379,0.00834,63111.0,63110.0,1.35458113]
[1721024768582,0.00834,63111.0,63110.0,2.70151748]
[1721024768790,0.00834,63111.0,63110.0,2.8354978]
[1721024768995,0.00834,63111.0,63110.0,3.17452032]
[1721024769209,0.00834,63111.0,63110.0,4.30502032]
[1721024769624,0.00834,63111.0,63110.0,3.68862719]
[1721024769837,0.00834,63111.0,63110.0,2.6950464]
[1721024770049,0.00834,63111.0,63110.0,3.4090464]
[1721024770256,0.006351,63112.0,63111.0,1.31626191]
[1721024770456,0.006351,63112.0,63111.0,1.73649544]
[1721024771240,0.006351,63112.0,63111.0,1.75949544]
[1721024771605,0.006351,63112.0,63111.0,2.08510935]
[1721024773071,0.006351,63112.0,63111.0,2.09910935]
[1721024773237,0.006351,63112.0,63111.0,2.11310935]
[1721024773445,0.006351,63112.0,63111.0,2.62846457]
[1721024773867,0.006351,63112.0,63111.0,2.60046457]
[1721024774143,0.006351,63112.0,63111.0,2.12925357]
[1721024774393,0.006351,63112.0,63111.0,2.14325357]
[1721024774716,0.006351,63112.0,63111.0,2.938684]
[1721024774910,0.006351,63112.0,63111.0,2.84174753]
[1721024775406,0.006351,63112.0,63111.0,2.42492791]
[1721024775614,0.006351,63112.0,63111.0,1.44174753]
[1721024775837,0.006351,63112.0,63111.0,2.138684]
[1721024776086,0.006351,63112.0,63111.0,2.124684]
[1721024776225,0.006351,63112.0,63111.0,2.133684]
[1721024777018,0.006351,63112.0,63111.0,2.138684]
[1721024777184,0.006351,63112.0,63111.0,2.152684]
[1721024777396,0.006351,63112.0,63111.0,1.181473]
[1721024777599,0.26692724,63112.0,63111.0,0.380666]
[1721024777803,0.4178354,63112.0,63111.0,0.580666]
[1721024777983,0.4178354,63112.0,63111.0,1.108666]
[1721024778185,0.33678302,63112.0,63111.0,1.108666]
[1721024778405,0.33678302,63112.0,63111.0,0.408666]
[1721024778406,0.4778354,63112.0,63111.0,0.408666]
[1721024778622,0.4778354,63112.0,63111.0,0.325366]
[1721024779059,0.4778354,63112.0,63111.0,0.26187]
[1721024779415,0.4778354,63112.0,63111.0,0.23387]
[1721024779624,0.4778354,63112.0,63111.0,0.24787]
[1721024779804,0.4778354,63112.0,63111.0,0.26187]
[1721024780007,0.4778354,63112.0,63109.0,0.063522]
[1721024780008,0.17877624,63110.0,63109.0,0.063522]
[1721024780210,0.54653202,63110.0,63109.0,0.063522]
[1721024781083,0.62673202,63110.0,63109.0,0.063522]
[1721024781281,0.17877624,63099.0,63092.0,0.01521668]
[1721024781496,0.39393202,63099.0,63092.0,0.01521668]
[1721024781699,0.25252287,63093.0,63092.0,0.07874868]
[1721024781875,0.48463202,63093.0,63092.0,0.01521668]
[1721024782454,0.62363202,63093.0,63092.0,0.01521668]
[1721024782865,0.24863202,63089.0,63088.0,0.063538]
[1721024783066,0.24863202,63089.0,63082.0,0.2]
[1721024783067,0.38813202,63083.0,63082.0,0.2]
[1721024783260,0.24863202,63080.0,63079.0,0.200913]
[1721024783483,0.24913202,63080.0,63079.0,0.200913]
[1721024783685,0.24913202,63080.0,63079.0,0.77484263]
[1721024783885,0.24913202,63080.0,63079.0,1.09190263]
[1721024784928,0.3123,63083.0,63082.0,1.09972991]
[1721024784929,0.001,63083.0,63082.0,1.09972991]
[1721024785274,0.06985578,63097.0,63096.0,1.413197]
[1721024785565,0.0633,63098.0,63097.0,0.427912]
[1721024785566,0.13315578,63098.0,63097.0,0.427912]
[1721024785777,0.13315578,63098.0,63097.0,1.030157]
[1721024785980,0.19212287,63098.0,63097.0,0.75234503]
[1721024786223,0.13315578,63098.0,63097.0,0.75234503]
[1721024786816,0.13315578,63098.0,63097.0,1.03762003]
[1721024787176,0.13415578,63098.0,63097.0,1.33689503]
[1721024787384,0.13415578,63098.0,63097.0,1.06562003]
[1721024788648,0.25293202,63098.0,63097.0,1.76562003]
[1721024788841,0.25193202,63098.0,63097.0,1.75162003]
[1721024789046,0.25193202,63098.0,63097.0,1.76562003]
[1721024789203,0.13315578,63098.0,63097.0,1.76562003]
[1721024789548,0.13315578,63098.0,63097.0,1.75162003]
[1721024789755,0.25193202,63098.0,63097.0,1.75162003]
[1721024789954,0.13315578,63098.0,63097.0,1.76562003]
[1721024790175,0.13315578,63098.0,63097.0,1.75162003]
[1721024790372,0.13315578,63098.0,63097.0,1.73762003]
[1721024790604,0.13315578,63098.0,63097.0,1.75162003]
[1721024790948,0.13315578,63098.0,63097.0,0.35243303]
[1721024790949,0.25193202,63098.0,63097.0,0.35243303]
[1721024791197,0.25193202,63098.0,63085.0,0.04934019]
[1721024791198,0.24863202,63086.0,63085.0,0.04934019]
[1721024791404,0.39283202,63086.0,63085.0,0.24934019]
[1721024791614,0.39283202,63086.0,63085.0,0.51703]
[1721024791855,0.33283202,63086.0,63085.0,0.31703]
[1721024792260,0.39283202,63086.0,63085.0,0.31703]
[1721024792484,0.11877624,63080.0,63079.0,0.26446]
[1721024792618,0.18863202,63080.0,63079.0,0.26446]
[1721024792814,0.18863202,63080.0,63079.0,0.000913]
[1721024793038,0.18863202,63080.0,63079.0,0.200913]
[1721024793767,0.18863202,63080.0,63079.0,0.014913]
[1721024794078,0.18863202,63080.0,63073.0,0.05090582]
[1721024794079,0.38983202,63074.0,63073.0,0.05090582]
[1721024794301,0.67973202,63074.0,63073.0,0.05090582]
[1721024794488,1.10780002,63074.0,63073.0,0.05090582]
[1721024794680,0.92242102,63074.0,63073.0,0.05090582]
[1721024794861,0.92242102,63074.0,63073.0,0.000913]
[1721024795281,0.11877624,63058.0,63057.0,1.1863143]
[1721024795483,0.11877624,63058.0,63057.0,1.6462123]
[1721024795484,0.18863202,63058.0,63057.0,1.6462123]
[1721024795671,0.18863202,63058.0,63057.0,1.159898]
[1721024795868,0.18863202,63058.0,63057.0,1.223463]
[1721024796113,0.06985578,63058.0,63057.0,1.223463]
[1721024796313,0.11877624,63059.0,63058.0,0.713627]
[1721024796314,0.06985578,63059.0,63058.0,0.713627]
[1721024796566,0.06985578,63059.0,63058.0,1.030797]
[1721024796750,0.06985578,63059.0,63058.0,1.730797]
[1721024797094,0.18863202,63059.0,63058.0,1.445346]
[1721024797493,0.18863202,63059.0,63058.0,1.01717]
[1721024797705,0.18863202,63059.0,63058.0,1.302621]
[1721024797706,0.06985578,63059.0,63058.0,1.302621]
[1721024797926,0.07085578,63059.0,63058.0,1.730797]
[1721024798124,0.07085578,63059.0,63058.0,2.016248]
[1721024798485,0.001,63059.0,63058.0,2.016248]
[1721024798683,0.001,63059.0,63058.0,2.30273191]
[1721024798885,0.001,63059.0,63058.0,2.63056231]
[1721024799091,0.002,63059.0,63058.0,2.63956231]
[1721024799293,0.002,63059.0,63058.0,2.3530784]
[1721024799914,0.002,63059.0,63058.0,2.35411131]
[1721024800351,0.06985578,63063.0,63062.0,0.713582]
[1721024800529,0.06985578,63065.0,63064.0,1.128136]
[1721024800860,0.06985578,63065.0,63064.0,1.41356]
[1721024800861,0.06907816,63065.0,63064.0,1.41356]
[1721024801178,0.1878544,63065.0,63064.0,1.128136]
[1721024801438,0.1878544,63065.0,63062.0,1.01715]
[1721024801439,0.1878544,63063.0,63062.0,1.01715]
[1721024801640,0.1888544,63063.0,63062.0,1.01715]
[1721024801774,0.1888544,63063.0,63062.0,1.159866]
[1721024802123,0.1888544,63063.0,63062.0,0.459866]
[1721024802628,0.1888544,63063.0,63062.0,0.473866]
[1721024802795,0.1878544,63063.0,63062.0,1.173866]
[1721024803159,0.1878544,63063.0,63062.0,0.473866]
[1721024803775,0.1888544,63063.0,63062.0,1.185866]
[1721024803994,0.07007816,63063.0,63062.0,1.471299]
[1721024804163,0.1888544,63063.0,63062.0,1.756732]
[1721024805577,0.07007816,63063.0,63062.0,1.756732]
[1721024806408,0.1888544,63063.0,63062.0,1.756732]
[1721024807719,0.1888544,63063.0,63062.0,1.471299]
[1721024808193,0.1888544,63063.0,63062.0,0.34315]
[1721024808393,0.2488544,63063.0,63062.0,0.34315]
[1721024808715,0.3272544,63063.0,63062.0,0.34315]
[1721024809106,0.3310544,63063.0,63062.0,0.34315]
[1721024809757,0.3310544,63063.0,63062.0,0.485866]
[1721024809901,0.3310544,63063.0,63062.0,0.34315]
[1721024810506,0.3310544,63063.0,63062.0,0.485866]
[1721024811051,0.3310544,63063.0,63062.0,0.771299]
[1721024811272,0.2526544,63063.0,63062.0,0.771299]
[1721024812044,0.2507744,63063.0,63062.0,0.771299]
[1721024812446,0.2507744,63063.0,63062.0,1.056732]
[1721024812669,0.2507744,63063.0,63062.0,0.771299]
[1721024814264,0.2488944,63063.0,63062.0,0.771299]
[1721024815043,0.1850944,63063.0,63062.0,1.342165]
[1721024815184,0.06907816,63063.0,63062.0,1.342165]
[1721024815372,0.063,63068.0,63067.0,0.342705]
[1721024815571,0.082,63075.0,63074.0,0.342689]
[1721024815775,0.082,63075.0,63074.0,0.51709]
[1721024815972,0.147,63075.0,63074.0,0.51709]
[1721024816399,0.267,63075.0,63074.0,0.51709]
[1721024817007,0.267,63075.0,63074.0,0.32509]
[1721024817008,0.268,63075.0,63074.0,0.32509]
[1721024818739,0.268,63075.0,63074.0,0.33209]
[1721024819119,0.26612,63075.0,63074.0,0.33209]
[1721024819861,0.36612,63075.0,63074.0,0.33209]
[1721024820290,0.39683057,63075.0,63074.0,0.33209]
[1721024820493,0.36612,63075.0,63074.0,0.33209]
[1721024820897,0.3969076,63075.0,63074.0,0.33209]
[1721024821119,0.36612,63075.0,63074.0,0.33209]
[1721024821315,0.39690678,63075.0,63074.0,0.33209]
[1721024822056,0.24612,63075.0,63074.0,0.53209]
[1721024822466,0.36612,63075.0,63074.0,0.53209]
[1721024822791,0.24612,63075.0,63074.0,0.53209]
[1721024823547,0.36612,63075.0,63074.0,0.53209]
[1721024823963,0.24612,63075.0,63074.0,0.53209]
[1721024824163,0.24612,63075.0,63074.0,0.960158]
[1721024824164,0.001,63075.0,63074.0,0.960158]
[1721024824371,0.00080915,63075.0,63074.0,0.960158]
[1721024824525,0.00080915,63075.0,63074.0,0.674779]
[1721024825089,0.00080915,63075.0,63074.0,0.52509]
[1721024825090,0.35300915,63075.0,63074.0,0.52509]
[1721024825281,0.23300915,63075.0,63074.0,0.52509]
[1721024825480,0.23300915,63075.0,63074.0,0.53209]
[1721024825892,0.23300915,63075.0,63074.0,0.52509]
[1721024826052,0.2322,63075.0,63074.0,0.51709]
[1721024826484,0.2332,63075.0,63074.0,0.53109]
[1721024827343,0.2332,63075.0,63074.0,0.54409]
[1721024827674,0.2332,63075.0,63074.0,0.972158]
[1721024827848,0.2332,63075.0,63074.0,1.257537]
[1721024827849,0.001,63075.0,63074.0,1.257537]
[1721024828049,0.001,63075.0,63074.0,0.972158]
[1721024828825,0.001,63075.0,63074.0,0.54409]
[1721024828826,0.2332,63075.0,63074.0,0.54409]
[1721024829241,0.2332,63075.0,63074.0,0.34409]
[1721024829242,0.3532,63075.0,63074.0,0.34409]
[1721024829685,1.05384588,63075.0,63074.0,0.34409]
[1721024830039,0.96638717,63075.0,63074.0,0.34409]
[1721024830239,0.76638717,63075.0,63074.0,0.34409]
[1721024830456,0.76638717,63075.0,63074.0,0.33109]
[1721024830680,0.96638717,63075.0,63074.0,0.33109]
[1721024830850,0.96638717,63075.0,63066.0,0.2]
[1721024830851,0.12,63067.0,63066.0,0.2]
[1721024831071,0.12,63067.0,63049.0,0.000913]
[1721024831072,0.12,63050.0,63049.0,0.000913]
[1721024831260,0.38460017,63050.0,63049.0,0.000913]
[1721024831559,0.55000017,63050.0,63049.0,0.000913]
[1721024831934,0.462746,63049.0,63036.0,0.000913]
[1721024832077,0.1812,63037.0,63036.0,0.000913]
[1721024832279,0.4912,63037.0,63036.0,0.000913]
[1721024832683,0.5912,63037.0,63036.0,0.000913]
[1721024834002,0.5922,63037.0,63036.0,0.012913]
[1721024834205,0.6506,63037.0,63036.0,0.000913]
[1721024834881,0.6506,63037.0,63036.0,0.011913]
[1721024835844,0.6506,63037.0,63036.0,0.012913]
[1721024835845,0.6516,63037.0,63036.0,0.012913]
[1721024836229,0.6496,63037.0,63036.0,0.000913]
[1721024836438,0.6496,63037.0,63036.0,0.002913]
[1721024836860,1.8012549,63037.0,63036.0,0.002913]
[1721024837066,1.8012549,63037.0,63016.0,0.4863143]
[1721024837067,0.1806,63022.0,63016.0,0.4863143]
[1721024837284,0.4712,63022.0,63016.0,0.4863143]
[1721024837460,0.4712,63022.0,63015.0,0.209174]
[1721024837657,0.999621,63022.0,63015.0,0.209174]
[1721024837916,1.385235,63022.0,63015.0,0.009174]
[1721024838218,0.22,63012.0,63011.0,0.001]
[1721024838421,0.653429,63012.0,63011.0,0.001]
[1721024838565,1.039088,63012.0,63011.0,0.001]
[1721024838764,0.753429,63012.0,63011.0,0.001]
[1721024838963,0.653429,63012.0,63011.0,0.001]
[1721024839408,1.039088,63012.0,63011.0,0.001]
[1721024839610,0.462834,63010.0,63008.0,0.009174]
[1721024839817,0.22,63009.0,63008.0,0.009174]
[1721024840028,0.51366353,63009.0,63008.0,0.009174]
[1721024840399,0.5106,63009.0,63008.0,0.009174]
[1721024840822,0.75649953,63009.0,63008.0,0.009174]
[1721024841380,1.32138808,63009.0,63008.0,0.009174]
[1721024841594,1.32325155,63009.0,63008.0,0.009174]
[1721024841753,1.32631508,63009.0,63008.0,0.009174]
[1721024841933,1.36870454,63009.0,63008.0,0.010174]
[1721024842132,2.13698701,63009.0,63008.0,0.011174]
[1721024842358,1.93698701,63009.0,63008.0,0.011174]
[1721024842534,1.93698701,63009.0,63008.0,0.009174]
[1721024842742,2.18279631,63009.0,63008.0,0.009174]
[1721024842924,2.18579631,63009.0,63008.0,0.009174]
[1721024843123,1.69612331,63009.0,63008.0,0.009174]
[1721024843330,1.69612331,63009.0,63008.0,0.010174]
[1721024843331,1.70212331,63009.0,63008.0,0.010174]
[1721024843747,1.70212331,63009.0,63008.0,0.009174]
[1721024844146,0.562843,63006.0,63000.0,0.02]
[1721024844327,1.01493,63006.0,63000.0,0.02]
[1721024844451,1.46424381,63005.0,63000.0,0.02]
[1721024844655,0.648563,63001.0,63000.0,0.02]
[1721024844896,1.36646396,63001.0,63000.0,0.02]
[1721024845100,1.08075496,63001.0,63000.0,0.02]
[1721024845346,1.61037147,63001.0,63000.0,0.02]
[1721024845555,0.0641,62998.0,62983.0,0.02]
[1721024845725,0.67609947,63001.0,62978.0,0.4863143]
[1721024845726,0.1841,62979.0,62978.0,0.4863143]
[1721024845873,0.1841,62979.0,62971.0,0.001]
[1721024845874,0.02,62979.0,62971.0,0.001]
[1721024846089,0.2906,62973.0,62971.0,0.001]
[1721024846299,0.2906,62976.0,62971.0,0.001]
[1721024846300,0.22292,62972.0,62971.0,0.001]
[1721024846547,0.18,62972.0,62971.0,0.001]
[1721024846734,0.4706,62972.0,62971.0,0.001]
[1721024847312,0.4706,62972.0,62960.0,0.142946]
[1721024847313,0.44105222,62972.0,62961.0,0.142945]
[1721024847549,0.10306353,62971.0,62966.0,0.2]
[1721024847740,0.10306353,62971.0,62966.0,0.342934]
[1721024847913,0.1,62971.0,62966.0,0.2]
[1721024848122,0.1,62971.0,62951.0,0.201]
[1721024848123,0.1,62969.0,62951.0,0.201]
[1721024848336,0.2906,62955.0,62951.0,0.201]
[1721024848536,0.2906,62955.0,62954.0,0.142961]
[1721024848738,0.2906,62955.0,62954.0,0.08105238]
[1721024849289,0.2906,62955.0,62951.0,0.201]
[1721024849483,0.2906,62955.0,62951.0,0.001]
[1721024849976,0.2906,62955.0,62954.0,0.2]
[1721024850172,0.3916,62955.0,62954.0,0.2]
[1721024851184,0.142,62954.0,62951.0,0.011]
[1721024851409,0.24506353,62954.0,62944.0,0.009174]
[1721024851669,0.2906,62945.0,62944.0,0.009174]
[1721024852024,0.3906,62945.0,62944.0,0.009174]
[1721024852421,0.533581,62945.0,62944.0,0.009174]
[1721024852617,0.733581,62945.0,62944.0,0.009174]
[1721024852862,0.819544,62945.0,62944.0,0.010174]
[1721024853283,0.819544,62945.0,62933.0,0.012528]
[1721024853284,0.204406,62934.0,62933.0,0.012528]
[1721024853494,0.352,62934.0,62933.0,0.012528]
[1721024853657,0.595006,62934.0,62933.0,0.012528]
[1721024853968,0.452,62934.0,62933.0,0.012528]
[1721024854651,1.222319,62934.0,62933.0,0.012528]
[1721024855059,0.1424,62930.0,62909.0,0.063709]
[1721024855261,0.1424,62930.0,62905.0,0.08105238]
[1721024855262,0.2906,62913.0,62907.0,0.4863143]
[1721024855481,0.1,62928.0,62907.0,0.4863143]
[1721024855482,0.386069,62922.0,62912.0,0.5]
[1721024855821,0.2906,62913.0,62912.0,0.5]
[1721024856027,0.3856,62913.0,62912.0,0.5]
[1721024856448,0.2856,62913.0,62912.0,0.643056]
[1721024856658,0.2856,62913.0,62912.0,0.5]
[1721024856861,0.2856,62913.0,62912.0,1.172226]
[1721024857069,0.1,62920.0,62917.0,0.50608999]
[1721024857269,0.04993709,62924.0,62919.0,0.08105238]
[1721024857474,0.04993709,62924.0,62914.0,0.08105238]
[1721024857475,0.2906,62920.0,62914.0,0.08105238]
[1721024857674,0.14078874,62920.0,62916.0,0.5]
[1721024857876,0.14078874,62920.0,62916.0,0.643047]
[1721024858030,0.14078874,62920.0,62916.0,0.5]
[1721024858231,0.34011927,62927.0,62918.0,0.143041]
[1721024858533,0.34011927,62927.0,62916.0,0.5]
[1721024858534,0.1,62926.0,62922.0,0.08105238]
[1721024858934,0.34011927,62927.0,62926.0,0.28505]
[1721024859134,0.3906,62944.0,62934.0,0.286011]
[1721024859135,0.2906,62944.0,62934.0,0.286011]
[1721024859340,0.2906,62944.0,62941.0,0.08105238]
[1721024859653,0.04994154,62939.0,62925.0,0.5]
[1721024859860,0.04994154,62939.0,62922.0,0.28105238]
[1721024859861,0.2906,62936.0,62922.0,0.08105238]
[1721024860062,0.2,62940.0,62922.0,0.08105238]
[1721024860063,0.2906,62926.0,62922.0,0.08105238]
[1721024860667,0.2906,62933.0,62926.0,0.143024]
[1721024860870,0.2906,62933.0,62931.0,0.51009238]
[1721024860871,0.1,62932.0,62931.0,0.51009238]
[1721024861241,0.0495071,62935.0,62934.0,0.529019]
[1721024861370,0.2906,62940.0,62934.0,0.529019]
[1721024861371,0.2906,62940.0,62934.0,0.243005]
[1721024861569,0.2906,62940.0,62934.0,0.243006]
[1721024861773,0.2906,62940.0,62933.0,0.143007]
[1721024861986,0.2906,62940.0,62933.0,0.11999999]
[1721024862216,0.2906,62940.0,62935.0,0.21999999]
[1721024862412,0.04928735,62944.0,62936.0,0.5]
[1721024862933,0.242968,62951.0,62936.0,0.143001]
[1721024863132,0.2906,62947.0,62939.0,0.142994]
[1721024863591,0.2906,62947.0,62937.0,0.142999]
[1721024863793,0.004,62944.0,62937.0,0.142999]
[1721024863981,0.005,62944.0,62938.0,0.142996]
[1721024864186,0.005,62944.0,62936.0,0.143001]
[1721024864404,0.005,62944.0,62937.0,0.142999]
[1721024864725,0.004,62944.0,62942.0,0.08105238]
[1721024864936,0.004,62944.0,62935.0,0.1]
[1721024865150,0.1,62946.0,62943.0,0.08105238]
[1721024865367,0.00306353,62953.0,62947.0,0.11899999]
[1721024865511,0.00306353,62953.0,62948.0,0.142974]
[1721024865720,0.00306353,62953.0,62945.0,0.11899999]
[1721024865721,0.00306353,62953.0,62943.0,0.08105238]
[1721024865896,0.04974976,62956.0,62944.0,0.142983]
[1721024865897,0.2906,62954.0,62944.0,0.142983]
[1721024866101,0.2906,62954.0,62945.0,0.14298]
[1721024866643,0.001,62947.0,62945.0,0.14298]
[1721024866841,0.001,62947.0,62946.0,0.142979]
[1721024867041,0.00084,62951.0,62949.0,0.142972]
[1721024867244,0.00084,62951.0,62946.0,0.142978]
[1721024867453,0.14444,62951.0,62937.0,0.08197638]
[1721024867646,0.14444,62951.0,62949.0,0.814862]
[1721024867647,0.00306353,62950.0,62949.0,0.814862]
[1721024867852,0.00084,62951.0,62950.0,0.53197451]
[1721024868100,0.04974976,62956.0,62955.0,1.21971299]
[1721024868291,0.4863143,62982.0,62974.0,0.385832]
[1721024868439,0.4863143,62982.0,62974.0,0.1]
[1721024868640,0.4863143,62982.0,62969.0,0.5]
[1721024868641,0.4906,62986.0,62972.0,0.242919]
[1721024868883,0.2906,62986.0,62972.0,0.1]
[1721024869001,0.4906,62986.0,62973.0,0.142918]
[1721024869228,0.2906,62986.0,62976.0,0.6]
[1721024869434,0.2776,62996.0,62987.0,0.142884]
[1721024869435,0.2906,62994.0,62987.0,0.142884]
[1721024869904,0.2906,62994.0,62986.0,0.142888]
[1721024870214,0.2906,62994.0,62984.0,0.285784]
[1721024870215,0.2906,62994.0,62984.0,0.385784]
[1721024870410,0.2906,62994.0,62988.0,0.142882]
[1721024870612,0.2906,62994.0,62985.0,0.14289]
[1721024870751,0.4976,62994.0,62981.0,0.04968326]
[1721024871108,0.2906,62987.0,62981.0,0.04968326]
[1721024871514,0.2906,62987.0,62978.0,0.142906]
[1721024871869,0.2906,62987.0,62974.0,0.04949986]
[1721024872069,0.2,62989.0,62974.0,0.04949986]
[1721024872070,0.2906,62979.0,62974.0,0.04949986]
[1721024872478,0.1,62978.0,62968.0,0.1]
[1721024872926,0.1,62978.0,62968.0,0.242928]
[1721024873130,0.1,62978.0,62969.0,0.142926]
[1721024873336,0.1,62978.0,62971.0,0.142922]
[1721024873539,0.1,62978.0,62972.0,0.61899999]
[1721024873682,0.1,62978.0,62974.0,0.004]
[1721024874303,0.101,62978.0,62974.0,0.004]
[1721024874982,0.0663,62977.0,62969.0,0.142926]
[1721024875186,0.0663,62977.0,62966.0,0.04966621]
[1721024875357,0.0663,62977.0,62969.0,0.006]
[1721024875562,0.0663,62977.0,62966.0,0.04966621]
[1721024875778,0.209209,62977.0,62966.0,0.04966621]
[1721024875916,0.1,62976.0,62974.0,0.006]
[1721024876121,0.1,62976.0,62966.0,0.04966621]
[1721024876122,0.2906,62975.0,62966.0,0.04966621]
[1721024876345,0.1,62974.0,62966.0,0.04966621]
[1721024876502,0.1,62974.0,62966.0,0.05666621]
[1721024876703,0.1,62974.0,62966.0,0.04966621]
[1721024876940,0.2906,62968.0,62966.0,0.04966621]
[1721024877196,0.1,62974.0,62966.0,0.04966621]
[1721024877413,0.0663,62977.0,62959.0,0.08105238]
[1721024877414,0.1,62973.0,62961.0,0.142944]
[1721024877958,0.1,62973.0,62963.0,0.285879]
[1721024878076,0.1,62973.0,62966.0,0.142933]
[1721024878273,0.1,62973.0,62960.0,0.40489099]
[1721024878274,0.001,62974.0,62973.0,0.428754]
[1721024878923,0.01,62978.0,62976.0,0.142909]
[1721024879127,0.01,62978.0,62977.0,0.142909]
[1721024879325,0.01,62978.0,62974.0,0.142915]
[1721024879526,0.01,62978.0,62977.0,0.142909]
[1721024879701,0.01,62978.0,62977.0,0.428727]
[1721024880043,0.008,62978.0,62977.0,0.813545]
[1721024880782,0.008,62978.0,62977.0,0.527727]
[1721024881158,0.008,62978.0,62977.0,0.00306353]
[1721024881622,0.008,62978.0,62976.0,0.00306353]
[1721024881862,0.008,62978.0,62977.0,0.001]
[1721024882064,0.008,62978.0,62975.0,0.142913]
[1721024882065,0.008,62978.0,62975.0,0.142912]
[1721024882212,0.008,62978.0,62976.0,0.00306353]
[1721024882419,0.009,62978.0,62977.0,0.156909]
[1721024882593,0.009,62978.0,62975.0,0.142911]
[1721024882795,0.01,62978.0,62976.0,0.00306353]
[1721024882999,0.011,62978.0,62977.0,0.014]
[1721024883183,0.01,62978.0,62977.0,0.014]
[1721024883593,0.011,62978.0,62977.0,0.014]
[1721024884209,0.01,62978.0,62977.0,0.014]
[1721024884822,0.008,62978.0,62973.0,0.242918]
[1721024885020,0.008,62978.0,62972.0,0.1]
[1721024885221,0.009,62978.0,62976.0,0.014]
[1721024885625,0.009,62978.0,62977.0,0.156909]
[1721024885626,0.011,62978.0,62977.0,0.156909]
[1721024886005,0.011,62978.0,62977.0,0.442727]
[1721024886127,0.008,62978.0,62977.0,0.428727]
[1721024886328,0.008,62978.0,62973.0,0.242916]
[1721024886574,0.009,62978.0,62974.0,0.14597853]
[1721024886727,0.009,62978.0,62976.0,0.142911]
[1721024886929,0.009,62978.0,62973.0,0.1]
[1721024886930,0.009,62978.0,62977.0,0.00306353]
[1721024887136,0.009,62978.0,62977.0,0.53179053]
[1721024887137,0.008,62978.0,62977.0,0.53179053]
[1721024887339,0.008,62978.0,62977.0,0.93354499]
[1721024887340,0.009,62978.0,62977.0,0.93354499]
[1721024887543,0.079,62991.0,62982.0,0.26189699]
[1721024888027,0.079,62991.0,62982.0,0.142897]
[1721024888234,0.079,62991.0,62982.0,0.26189699]
[1721024888475,0.079,62991.0,62982.0,0.142897]
[1721024888705,0.079,62991.0,62979.0,0.1]
[1721024888953,0.079,62991.0,62978.0,0.05260233]
[1721024888954,0.079,62991.0,62980.0,0.142901]
[1721024889517,0.571582,62983.0,62982.0,0.001]
[1721024889694,0.571582,62983.0,62978.0,0.0495388]
[1721024889695,0.628713,62979.0,62978.0,0.0495388]
[1721024890121,0.528713,62979.0,62978.0,0.0495388]
[1721024890358,0.142909,62977.0,62965.0,0.00306353]
[1721024890567,0.1,62976.0,62965.0,0.00306353]
[1721024890781,0.1,62976.0,62964.0,0.04941545]
[1721024891681,0.1,62978.0,62965.0,0.08105238]
[1721024891956,0.05,62979.0,62973.0,0.142917]
[1721024892277,0.05,62979.0,62974.0,0.00306353]
[1721024892546,0.014,62977.0,62974.0,0.00306353]
[1721024892787,0.05,62979.0,62972.0,0.00306353]
[1721024893035,0.008,62978.0,62972.0,0.00306353]
[1721024893293,0.05,62979.0,62971.0,0.12206352]
[1721024893294,0.054,62979.0,62971.0,0.12206352]